bitfinex-derivatives/quotes_SOLF0:USTF0_20250415
["timestamp","ask_amount","ask_price","bid_price","bid_amount"]
[1744699335625,35.05307606,131.55,131.46,7.37307606]
[1744699335827,7.6045,131.53,131.49,7.606]
[1744699336319,35.05307606,131.55,131.49,7.606]
[1744699336521,35.05307606,131.55,131.5,0.05142755]
[1744699336824,35.05307606,131.55,131.5,7.65722755]
[1744699337624,7.6045,131.53,131.5,0.05142755]
[1744699338019,35.05307606,131.55,131.5,0.05142755]
[1744699338213,7.6053,131.51,131.5,0.05142755]
[1744699338414,7.37307606,131.53,131.45,27.68]
[1744699338619,27.68,131.52,131.45,27.68]
[1744699339522,0.05142755,131.5,131.47,0.05666252]
[1744699340225,7.65732755,131.5,131.47,7.66396252]
[1744699341224,7.65732755,131.5,131.47,0.05666252]
[1744699342326,7.65732755,131.5,131.47,7.66426252]
[1744699346226,0.05142755,131.5,131.48,7.607]
[1744699346438,0.05142755,131.5,131.47,0.05666252]
[1744699346729,0.05142755,131.5,131.48,27.68]
[1744699347433,0.05142755,131.5,131.48,35.2867]
[1744699349032,0.05142755,131.5,131.49,7.6065]
[1744699349237,6.2063,131.56,131.48,35.05307606]
[1744699349434,7.6045,131.53,131.48,35.05307606]
[1744699349633,7.6045,131.53,131.5,7.6056]
[1744699350336,7.6045,131.53,131.5,7.66034004]
[1744699351038,6.2063,131.56,131.5,0.05474004]
[1744699351334,7.37307606,131.55,131.5,0.05474004]
[1744699352037,7.6053,131.51,131.5,0.05474004]
[1744699359843,7.605,131.52,131.5,0.05474004]
[1744699360645,7.6053,131.51,131.5,0.05474004]
[1744699361335,7.605,131.52,131.5,0.05474004]
[1744699361940,7.6044,131.53,131.5,0.05474004]
[1744699362244,7.6044,131.53,131.5,7.66034004]
[1744699363240,7.6048,131.52,131.5,7.66034004]
[1744699363441,7.6048,131.52,131.5,0.05474004]
[1744699364046,7.6053,131.51,131.5,0.05474004]
[1744699366048,7.605,131.52,131.5,0.05474004]
[1744699366745,7.6053,131.51,131.5,0.05474004]
[1744699370043,7.605,131.52,131.5,0.05474004]
[1744699371652,35.03307606,131.55,131.5,0.05474004]
[1744699371956,27.66,131.58,131.51,27.66]
[1744699372152,27.66,131.58,131.53,0.05113601]
[1744699373155,7.6036,131.54,131.53,0.05113601]
[1744699380455,4.71220852,131.58,131.53,4.76334453]
[1744699380657,4.71220852,131.54,131.48,27.66]
[1744699380855,4.71220852,131.54,131.49,4.71220852]
[1744699381047,4.71220852,131.55,131.5,4.71220852]
[1744699381358,7.6043,131.53,131.51,7.605]
[1744699381858,7.6043,131.53,131.51,7.65455447]
[1744699381859,7.65543601,131.53,131.51,7.65455447]
[1744699382357,0.05113601,131.53,131.51,7.65455447]
[1744699383359,0.05113601,131.53,131.51,35.31455447]
[1744699383660,7.65543601,131.53,131.51,35.31455447]
[1744699384655,7.65543601,131.53,131.51,27.70955447]
[1744699386763,12.31690852,131.52,131.51,27.70955447]
[1744699387057,12.31690852,131.52,131.51,0.04955447]
[1744699387655,7.6076,131.47,131.38,556.31768101]
[1744699387853,32.35220852,131.52,131.38,556.31768101]
[1744699387854,4.71220852,131.46,131.41,4.71220852]
[1744699388056,4.71220852,131.44,131.39,33.7285]
[1744699388261,4.71220852,131.44,131.39,38.44070852]
[1744699388461,12.32200852,131.44,131.4,7.6113]
[1744699388664,4.71220852,131.44,131.4,7.6113]
[1744699388862,0.04928799,131.43,131.41,0.05106349]
[1744699389256,4.76149651,131.43,131.41,0.05106349]
[1744699389452,4.71220852,131.42,131.41,0.05106349]
[1744699389862,12.32270852,131.42,131.41,0.05106349]
[1744699390062,4.71220852,131.42,131.36,42.11490852]
[1744699390266,7.6121,131.4,131.36,42.11490852]
[1744699390460,4.71220852,131.38,131.36,27.64]
[1744699390661,4.71220852,131.37,131.3,33.8806]
[1744699390960,7.6158,131.33,131.3,27.66]
[1744699391362,0.0548401,131.33,131.3,27.71553068]
[1744699391966,0.0548401,131.33,131.3,35.33283068]
[1744699392961,0.0548401,131.33,131.3,27.71553068]
[1744699393362,0.0548401,131.33,131.3,0.05553068]
[1744699393563,7.6163,131.32,131.3,0.05553068]
[1744699394962,7.6169,131.31,131.3,0.05553068]
[1744699395573,7.6165,131.32,131.3,0.05553068]
[1744699396069,7.6169,131.31,131.3,0.05553068]
[1744699396875,0.0548401,131.33,131.3,0.05553068]
[1744699398174,0.0548401,131.33,131.3,7.67283068]
[1744699398774,7.38747394,131.32,131.3,0.05553068]
[1744699398975,7.38747394,131.32,131.24,27.68]
[1744699399171,7.38747394,131.3,131.24,27.68]
[1744699399377,7.6193,131.27,131.24,27.68]
[1744699399573,35.06747394,131.3,131.24,27.68]
[1744699399878,7.619,131.28,131.24,35.3008]
[1744699400178,7.66838106,131.28,131.26,0.05727749]
[1744699400875,7.6192,131.27,131.26,0.05727749]
[1744699401574,0.04938106,131.28,131.26,0.05727749]
[1744699402575,0.04938106,131.28,131.26,7.67697749]
[1744699402776,0.04938106,131.28,131.26,7.44475143]
[1744699402975,0.04938106,131.28,131.27,27.68]
[1744699404174,0.04938106,131.28,131.27,35.2992]
[1744699404577,9.37817394,131.35,131.27,27.68]
[1744699404778,7.6147,131.35,131.31,7.6165]
[1744699405779,0.0484594,131.34,131.32,0.05115413]
[1744699406480,0.0484594,131.34,131.32,7.66735413]
[1744699407681,0.0484594,131.34,131.32,0.05115413]
[1744699410677,7.6637594,131.34,131.32,0.05115413]
[1744699411080,0.0484594,131.34,131.32,0.05115413]
[1744699411379,7.38747394,131.33,131.27,27.68]
[1744699411579,7.38747394,131.33,131.28,7.6183]
[1744699411880,7.38747394,131.33,131.27,27.68]
[1744699412481,0.05750746,131.31,131.29,0.04867682]
[1744699413185,7.6178,131.3,131.29,0.04867682]
[1744699415082,0.05750746,131.31,131.29,0.04867682]
[1744699416784,0.05750746,131.31,131.29,7.66657682]
[1744699418290,0.05750746,131.31,131.29,0.04867682]
[1744699418790,7.67450746,131.31,131.29,0.04867682]
[1744699422399,7.6175,131.3,131.29,0.04867682]
[1744699424102,0.05750746,131.31,131.24,27.68]
[1744699424103,7.4449814,131.31,131.24,27.68]
[1744699424402,7.38747394,131.29,131.24,27.68]
[1744699425105,0.05769899,131.28,131.25,0.05396632]
[1744699425304,7.6192,131.27,131.25,0.05396632]
[1744699428706,7.6198,131.26,131.25,0.05396632]
[1744699430304,7.6193,131.27,131.25,0.05396632]
[1744699431811,7.6198,131.26,131.25,0.05396632]
[1744699434412,0.05769899,131.28,131.25,0.05396632]
[1744699434805,0.05769899,131.28,131.25,4.16716632]
[1744699435413,0.05769899,131.28,131.26,7.6195]
[1744699436408,0.05769899,131.28,131.25,0.05396632]
[1744699436613,7.44517293,131.28,131.25,0.05396632]
[1744699437313,7.6198,131.26,131.25,0.05396632]
[1744699440711,7.6221,131.23,131.21,27.68]
[1744699440912,7.38747394,131.26,131.21,27.68]
[1744699441514,2.0089,131.27,131.21,27.68]
[1744699441714,7.6207,131.25,131.22,7.622]
[1744699442014,0.05106055,131.25,131.23,0.04983707]
[1744699442814,7.67176055,131.25,131.23,0.04983707]
[1744699443113,0.05106055,131.25,131.23,0.04983707]
[1744699443710,0.05106055,131.25,131.24,7.6209]
[1744699445418,27.7,131.31,131.24,27.7]
[1744699445714,2.004,131.32,131.25,7.38747394]
[1744699445914,7.6172,131.31,131.28,7.6186]
[1744699446311,35.08747394,131.34,131.28,7.6186]
[1744699446516,0.05161403,131.31,131.28,7.67562999]
[1744699446918,7.66891403,131.31,131.28,7.67562999]
[1744699447620,7.6175,131.3,131.28,0.05702999]
[1744699447920,0.05161403,131.31,131.28,0.05702999]
[1744699448116,7.6175,131.3,131.28,0.05702999]
[1744699448421,0.05161403,131.31,131.28,0.05702999]
[1744699449318,7.6179,131.3,131.28,0.05702999]
[1744699449520,0.05161403,131.31,131.28,7.67542999]
[1744699449719,0.05161403,131.31,131.28,0.05702999]
[1744699449917,7.38747394,131.4,131.29,7.38747394]
[1744699450121,11.37357394,131.4,131.31,7.38747394]
[1744699450423,7.38747394,131.38,131.3,29.6908]
[1744699450621,7.38747394,131.36,131.3,27.68]
[1744699451016,7.38747394,131.36,131.32,0.04994383]
[1744699451323,0.04828769,131.34,131.32,0.04994383]
[1744699452326,7.6157,131.33,131.32,0.04994383]
[1744699454229,7.66368769,131.34,131.32,0.04994383]
[1744699454525,0.04828769,131.34,131.32,0.04994383]
[1744699455127,7.6157,131.33,131.32,0.04994383]
[1744699456527,7.66368769,131.34,131.32,0.04994383]
[1744699456727,0.04828769,131.34,131.32,0.04994383]
[1744699457732,7.6157,131.33,131.32,0.04994383]
[1744699460330,7.66348769,131.34,131.32,0.04994383]
[1744699460831,0.04828769,131.34,131.32,0.04994383]
[1744699461124,7.6157,131.33,131.32,0.04994383]
[1744699463525,7.66378769,131.34,131.32,0.04994383]
[1744699467929,0.04828769,131.34,131.32,7.66594383]
[1744699469634,7.66358769,131.34,131.32,0.04994383]
[1744699470432,12.34214276,131.33,131.32,0.04994383]
[1744699470736,4.72644276,131.33,131.28,2.0465]
[1744699470936,7.6169,131.31,131.28,9.6648]
[1744699471237,7.6169,131.31,131.28,7.6183]
[1744699471635,7.6679422,131.31,131.28,7.66726686]
[1744699475435,0.0510422,131.31,131.28,7.66726686]
[1744699475643,0.0510422,131.31,131.28,0.04896686]
[1744699475837,7.38974332,131.3,131.28,0.04896686]
[1744699476140,7.618,131.29,131.28,0.04896686]
[1744699480135,7.38974332,131.3,131.24,27.68]
[1744699480341,7.38974332,131.28,131.24,27.68]
[1744699480736,7.6193,131.27,131.24,27.68]
[1744699481341,7.67370052,131.27,131.24,27.73352754]
[1744699482846,7.67370052,131.27,131.24,0.05352754]
[1744699483141,7.6199,131.26,131.24,0.05352754]
[1744699483944,7.67390052,131.27,131.24,7.67442754]
[1744699485347,0.05440052,131.27,131.25,7.6202]
[1744699486645,0.05440052,131.27,131.26,7.6198]
[1744699487341,0.05440052,131.27,131.25,35.3001]
[1744699487548,0.05440052,131.27,131.25,27.68]
[1744699487951,27.68,131.32,131.25,35.06974332]
[1744699488244,4.1062,131.33,131.25,35.06974332]
[1744699489042,0.0577963,131.3,131.28,0.0484226]
[1744699489344,7.615,131.35,131.32,7.616]
[1744699489648,29.7765,131.39,131.31,35.06974332]
[1744699489946,7.614,131.36,131.33,7.6154]
[1744699490348,7.6658816,131.36,131.33,7.66507284]
[1744699491444,0.0518816,131.36,131.34,7.6151]
[1744699492250,0.0518816,131.36,131.35,7.6146]
[1744699493152,0.0518816,131.36,131.34,35.2749]
[1744699493451,0.0518816,131.36,131.34,27.66]
[1744699494251,7.6661816,131.36,131.34,27.66]
[1744699499550,0.0518816,131.36,131.34,27.66]
[1744699499852,0.0518816,131.36,131.33,0.04967284]
[1744699500855,7.6151,131.34,131.33,0.04967284]
[1744699501649,7.6148,131.35,131.33,0.04967284]
[1744699502156,0.0518816,131.36,131.33,0.04967284]
[1744699502353,7.6661816,131.36,131.33,0.04967284]
[1744699502755,7.6661816,131.36,131.33,7.66507284]
[1744699503152,0.0518816,131.36,131.33,7.66507284]
[1744699503356,0.0518816,131.36,131.34,7.6146]
[1744699504759,0.0518816,131.36,131.35,7.6146]
[1744699506961,0.0518816,131.36,131.34,35.2749]
[1744699507857,0.0518816,131.36,131.35,7.6146]
[1744699509259,27.66,131.42,131.39,7.6119]
[1744699509459,7.38974332,131.44,131.37,27.66]
[1744699510062,7.38974332,131.4,131.34,27.66]
[1744699510561,0.05036584,131.38,131.36,0.04897971]
[1744699511359,4.77538997,131.38,131.36,0.04897971]
[1744699512161,7.6134,131.37,131.36,0.04897971]
[1744699512462,4.77538997,131.38,131.36,0.04897971]
[1744699513062,0.05036584,131.38,131.36,0.04897971]
[1744699513562,0.05036584,131.38,131.36,7.66257971]
[1744699513764,0.05036584,131.38,131.36,0.04897971]
[1744699514265,7.6102,131.43,131.37,27.66]
[1744699514962,7.6102,131.43,131.37,29.7107]
[1744699515262,0.04879354,131.41,131.39,7.66838504]
[1744699516664,0.04879354,131.41,131.4,7.6117]
[1744699519268,0.04879354,131.41,131.4,35.2517]
[1744699520262,0.04879354,131.41,131.4,27.64]
[1744699520464,0.04879354,131.41,131.39,0.05668504]
[1744699521066,7.6117,131.4,131.39,0.05668504]
[1744699521363,0.04879354,131.41,131.39,0.05668504]
[1744699521868,7.66019354,131.41,131.39,0.05668504]
[1744699523172,7.6117,131.4,131.39,0.05668504]
[1744699523368,14.99213582,131.4,131.39,0.05668504]
[1744699523570,7.38043582,131.4,131.36,27.64]
[1744699523972,7.38043582,131.4,131.33,33.929]
[1744699524269,7.6131,131.38,131.35,7.6143]
[1744699524471,7.38043582,131.4,131.33,33.929]
[1744699524662,0.05378303,131.38,131.35,0.05801144]
[1744699526167,0.05378303,131.38,131.36,7.614]
[1744699526467,0.05378303,131.38,131.35,0.05801144]
[1744699527770,7.6137,131.37,131.35,0.05801144]
[1744699529981,0.05378303,131.38,131.36,7.614]
[1744699530580,0.05378303,131.38,131.37,7.6134]
[1744699530782,0.05378303,131.38,131.35,0.05801144]
[1744699530982,0.05378303,131.38,131.36,27.64]
[1744699531176,7.38043582,131.46,131.37,7.38043582]
[1744699531379,589.11913582,131.51,131.41,7.38043582]
[1744699531575,589.11913582,131.51,131.42,27.64]
[1744699531882,7.38043582,131.49,131.42,27.64]
[1744699532277,7.6082,131.46,131.44,0.05317786]
[1744699534682,0.05064144,131.47,131.44,0.05317786]
[1744699535683,0.05064144,131.47,131.45,7.6088]
[1744699536283,0.05064144,131.47,131.44,7.66227786]
[1744699536481,0.05064144,131.47,131.44,0.05317786]
[1744699536987,7.65854144,131.47,131.44,0.05317786]
[1744699537486,7.6088,131.45,131.44,0.05317786]
[1744699544584,7.6084,131.46,131.44,0.05317786]
[1744699554493,0.05064144,131.47,131.45,27.62]
[1744699554991,0.05064144,131.47,131.46,7.6082]
[1744699555588,7.6059,131.5,131.47,7.6072]
[1744699556090,27.62,131.52,131.45,37.08523582]
[1744699556291,35.00043582,131.52,131.45,29.7048]
[1744699556590,0.04575328,131.5,131.47,0.05294369]
[1744699556894,7.6069,131.49,131.47,0.05294369]
[1744699560496,7.607,131.48,131.47,0.05294369]
[1744699561299,7.6082,131.46,131.45,27.62]
[1744699561499,7.38043582,131.48,131.41,27.62]
[1744699561997,7.6093,131.45,131.42,7.6103]
[1744699562191,7.38043582,131.48,131.41,27.62]
[1744699562496,0.05101211,131.46,131.43,0.05195104]
[1744699562898,7.6092,131.45,131.43,0.05195104]
[1744699564401,0.05101211,131.46,131.43,0.05195104]
[1744699564599,0.05101211,131.46,131.44,27.62]
[1744699565899,7.6088,131.45,131.44,27.62]
[1744699566398,7.6088,131.45,131.43,0.05195104]
[1744699568601,7.6088,131.45,131.43,7.66185104]
[1744699569701,7.6088,131.45,131.43,0.05195104]
[1744699571103,7.65931211,131.46,131.43,0.05195104]
[1744699572007,7.65931211,131.46,131.43,7.66155104]
[1744699572807,7.609,131.45,131.43,0.05195104]
[1744699574007,7.6094,131.44,131.43,0.05195104]
[1744699575504,7.6094,131.44,131.41,27.62]
[1744699575505,12.32800858,131.44,131.38,31.5997]
[1744699575710,4.71860858,131.42,131.38,31.5997]
[1744699576209,12.32960858,131.42,131.39,7.612]
[1744699576506,4.71860858,131.42,131.38,27.62]
[1744699576711,4.71860858,131.4,131.39,0.04809068]
[1744699577011,12.33060858,131.4,131.39,0.04809068]
[1744699577311,7.612,131.4,131.39,0.04809068]
[1744699577511,7.6114,131.41,131.39,0.04809068]
[1744699578417,0.0537537,131.42,131.39,0.04809068]
[1744699578910,0.0537537,131.42,131.4,7.6112]
[1744699579613,0.0537537,131.42,131.41,7.6111]
[1744699579813,0.0537537,131.42,131.39,0.04809068]
[1744699581317,7.6114,131.41,131.39,0.04809068]
[1744699582415,7.6114,131.41,131.39,7.66029068]
[1744699582615,7.6114,131.41,131.39,0.04809068]
[1744699583009,7.6117,131.4,131.39,0.04809068]
[1744699583215,27.62,131.4,131.32,27.62]
[1744699583416,7.37956567,131.37,131.32,27.62]
[1744699583915,7.6152,131.34,131.32,27.62]
[1744699584110,7.37956567,131.35,131.32,27.62]
[1744699584315,7.66513475,131.34,131.32,0.05025477]
[1744699585719,0.04983475,131.34,131.32,7.66655477]
[1744699585918,2.0551,131.39,131.32,35.04982044]
[1744699586216,27.62,131.41,131.34,7.37956567]
[1744699586414,7.612,131.4,131.35,27.62]
[1744699586615,2.1074,131.42,131.35,27.62]
[1744699587014,0.05021566,131.4,131.37,0.05176927]
[1744699587218,2.1074,131.46,131.38,34.99956567]
[1744699587419,2.1074,131.46,131.38,37.05536567]
[1744699587622,7.6099,131.44,131.4,7.6114]
[1744699587919,2.1074,131.46,131.38,37.05536567]
[1744699588120,2.1074,131.46,131.38,9.43536567]
[1744699588315,7.37956567,131.45,131.41,0.05826384]
[1744699588521,0.05723494,131.43,131.41,0.05826384]
[1744699588722,7.6106,131.42,131.41,0.05826384]
[1744699590017,7.6123,131.39,131.37,27.62]
[1744699590220,7.37956567,131.41,131.37,27.62]
[1744699590421,7.37956567,131.41,131.35,7.6145]
[1744699590717,34.99956567,131.41,131.35,7.6145]
[1744699591017,34.99956567,131.41,131.34,37.3855]
[1744699591224,7.6128,131.38,131.37,0.05222085]
[1744699596724,7.6645744,131.39,131.37,0.05222085]
[1744699596924,0.0520744,131.39,131.37,0.05222085]
[1744699598327,7.6128,131.38,131.37,0.05222085]
[1744699600927,7.6644744,131.39,131.37,0.05222085]
[1744699601926,7.6128,131.38,131.37,0.05222085]
[1744699602129,0.0520744,131.39,131.37,0.05222085]
[1744699602527,7.6128,131.38,131.37,0.05222085]
[1744699605427,7.6146,131.35,131.32,7.6163]
[1744699605931,7.6143,131.36,131.32,7.6163]
[1744699606131,7.6143,131.36,131.33,7.6157]
[1744699606333,27.64,131.38,131.31,27.64]
[1744699606533,0.05781065,131.36,131.34,7.6146]
[1744699608432,0.05781065,131.36,131.35,7.6146]
[1744699609534,0.05781065,131.36,131.34,35.2349]
[1744699612237,7.67181065,131.36,131.34,27.62]
[1744699615641,7.6146,131.35,131.34,27.62]
[1744699615937,0.05781065,131.36,131.33,0.04846029]
[1744699616740,0.05781065,131.36,131.34,7.6149]
[1744699620541,0.05781065,131.36,131.35,7.6146]
[1744699621440,0.05781065,131.36,131.34,7.6149]
[1744699621634,0.05781065,131.36,131.33,4.77342621]
[1744699621835,0.05781065,131.36,131.33,0.04846029]
[1744699622042,0.05781065,131.36,131.33,7.66386029]
[1744699623241,7.67191065,131.36,131.33,7.66386029]
[1744699625142,0.05781065,131.36,131.33,4.77342621]
[1744699626040,0.05781065,131.36,131.33,0.04846029]
[1744699626542,7.6146,131.35,131.33,0.04846029]
[1744699628643,7.67211065,131.36,131.33,7.66416029]
[1744699629442,7.67211065,131.36,131.33,0.04846029]
[1744699629948,7.67211065,131.36,131.33,7.66386029]
[1744699632045,7.6147,131.35,131.33,7.66386029]
[1744699632250,0.05781065,131.36,131.33,0.04846029]
[1744699632548,7.6169,131.32,131.28,27.64]
[1744699632842,4.72496592,131.34,131.3,4.72496592]
[1744699633146,12.33886592,131.37,131.32,4.72496592]
[1744699633643,12.33886592,131.37,131.33,7.6155]
[1744699633847,7.67171188,131.36,131.33,7.66994841]
[1744699634245,7.67171188,131.36,131.33,0.05444841]
[1744699634748,12.33976592,131.35,131.33,0.05444841]
[1744699634950,4.72496592,131.35,131.33,0.05444841]
[1744699636148,7.6151,131.34,131.33,0.05444841]
[1744699637447,4.72496592,131.35,131.28,27.64]
[1744699637648,4.72496592,131.32,131.28,27.64]
[1744699637844,4.72496592,131.3,131.28,27.64]
[1744699638049,4.72496592,131.3,131.27,7.6189]
[1744699638247,12.34286592,131.3,131.26,27.64]
[1744699638449,4.72496592,131.3,131.26,35.2595]
[1744699638650,4.78132763,131.29,131.27,0.05294122]
[1744699639150,12.39942763,131.29,131.27,0.05294122]
[1744699640244,0.05636171,131.29,131.27,7.67184122]
[1744699640452,0.05636171,131.29,131.28,4.72496592]
[1744699640748,7.6166,131.32,131.29,7.6175]
[1744699641749,7.67000474,131.32,131.29,7.66703641]
[1744699642050,0.05340474,131.32,131.29,7.66703641]
[1744699644947,0.05340474,131.32,131.3,7.6175]
[1744699645755,0.05340474,131.32,131.29,35.30743641]
[1744699646248,4.77837066,131.32,131.29,35.30743641]
[1744699650854,4.77837066,131.32,131.29,27.68953641]
[1744699651055,4.72496592,131.3,131.29,0.04953641]
[1744699652355,12.34246592,131.3,131.29,0.04953641]
[1744699655954,7.6197,131.27,131.23,29.7183]
[1744699656159,4.72496592,131.27,131.23,27.64]
[1744699656559,4.72496592,131.27,131.23,35.2612]
[1744699656961,4.72496592,131.25,131.2,32.36496592]
[1744699657153,27.64,131.27,131.2,32.36496592]
[1744699657154,4.72496592,131.24,131.2,27.64]
[1744699657354,4.72496592,131.24,131.21,0.04918582]
[1744699657549,0.05095151,131.23,131.22,7.6221]
[1744699658259,0.05095151,131.23,131.22,12.34706592]
[1744699658653,0.05095151,131.23,131.22,7.6221]
[1744699672176,32.36496592,131.3,131.22,4.72496592]
[1744699672376,32.36496592,131.3,131.25,4.72496592]
[1744699672675,7.619,131.28,131.25,12.34506592]
[1744699672874,7.619,131.28,131.25,7.6201]
[1744699673176,7.67542407,131.28,131.25,7.67818519]
[1744699674679,7.6192,131.27,131.25,7.67818519]
[1744699674979,0.05642407,131.28,131.25,7.67818519]
[1744699675177,7.67532407,131.28,131.25,7.67818519]
[1744699675478,4.78138999,131.28,131.25,0.05808519]
[1744699675678,7.6198,131.26,131.25,0.05808519]
[1744699675878,4.72496592,131.27,131.25,0.05808519]
[1744699676281,12.34446592,131.27,131.25,0.05808519]
[1744699676482,4.78138999,131.28,131.25,0.05808519]
[1744699677182,12.40038999,131.28,131.25,0.05808519]
[1744699677382,0.05642407,131.28,131.27,4.72496592]
[1744699677680,4.72496592,131.36,131.27,4.72496592]
[1744699677875,32.36496592,131.37,131.32,4.72496592]
[1744699678283,7.6143,131.36,131.33,7.6153]
[1744699678585,7.67108881,131.36,131.33,7.66837233]
[1744699679184,0.05678881,131.36,131.34,7.6151]
[1744699679484,0.05678881,131.36,131.33,0.05307233]
[1744699679685,7.6146,131.35,131.33,0.05307233]
[1744699680483,7.6151,131.34,131.33,0.05307233]
[1744699682786,35.02389466,131.35,131.27,27.64]
[1744699682985,7.38389466,131.32,131.24,27.64]
[1744699683284,35.02389466,131.32,131.24,27.64]
[1744699683488,7.38389466,131.3,131.24,27.64]
[1744699683885,0.05501219,131.28,131.26,0.0521628]
[1744699684088,7.67391219,131.28,131.26,0.0521628]
[1744699684491,0.05501219,131.28,131.26,0.0521628]
[1744699684682,0.05501219,131.28,131.27,7.6192]
[1744699687290,0.05501219,131.28,131.26,7.6718628]
[1744699688487,0.05501219,131.28,131.27,7.6192]
[1744699689391,0.05501219,131.28,131.26,7.6716628]
[1744699690691,0.05501219,131.28,131.26,0.0521628]
[1744699690990,7.67361219,131.28,131.26,0.0521628]
[1744699691490,0.05501219,131.28,131.26,0.0521628]
[1744699692395,0.05501219,131.28,131.26,7.6718628]
[1744699693494,0.05501219,131.28,131.27,7.6192]
[1744699694792,2.0201,131.34,131.27,35.02389466]
[1744699695095,7.38389466,131.36,131.27,35.02389466]
[1744699695396,7.6155,131.34,131.3,7.617]
[1744699695894,0.05599515,131.33,131.31,0.05709347]
[1744699696293,7.67189515,131.33,131.31,0.05709347]
[1744699697095,0.05599515,131.33,131.31,7.67389347]
[1744699697890,554.7181,131.38,131.31,7.67389347]
[1744699697891,7.38389466,131.42,131.31,35.08098813]
[1744699698090,269.82700536,131.51,131.37,7.38389466]
[1744699698091,2.1024,131.43,131.37,7.38389466]
[1744699698303,27.64,131.45,131.39,7.38389466]
[1744699698499,35.02389466,131.45,131.37,35.02389466]
[1744699698698,35.02389466,131.45,131.37,27.64]
[1744699698999,7.38389466,131.41,131.4,0.0512472]
[1744699699196,35.02389466,131.41,131.33,35.02389466]
[1744699699494,35.02389466,131.41,131.36,7.6136]
[1744699699699,0.04868745,131.38,131.36,7.66334687]
[1744699700095,0.04868745,131.38,131.36,0.04974687]
[1744699700695,7.38389466,131.37,131.36,0.04974687]
[1744699700894,7.6149,131.35,131.3,27.62]
[1744699701196,7.38389466,131.35,131.3,27.62]
[1744699701398,7.38389466,131.35,131.3,35.2372]
[1744699701599,7.6157,131.34,131.3,35.2372]
[1744699701898,0.05260089,131.33,131.31,0.04942851]
[1744699702898,0.05260089,131.33,131.31,7.66622851]
[1744699703197,0.05260089,131.33,131.31,0.04942851]
[1744699703395,0.05260089,131.33,131.32,7.6163]
[1744699711507,0.05260089,131.33,131.31,0.04942851]
[1744699713309,0.05260089,131.33,131.31,7.66602851]
[1744699714413,0.05260089,131.33,131.32,7.6163]
[1744699716213,0.05260089,131.33,131.31,0.04942851]
[1744699716714,7.66840089,131.33,131.31,0.04942851]
[1744699717108,0.05260089,131.33,131.31,0.04942851]
[1744699717715,7.6163,131.32,131.31,0.04942851]
[1744699717910,0.05260089,131.33,131.31,0.04942851]
[1744699718110,7.66870089,131.33,131.31,0.04942851]
[1744699720017,0.05260089,131.33,131.31,0.04942851]
[1744699720616,0.05260089,131.33,131.31,7.66592851]
[1744699723216,7.66840089,131.33,131.31,0.04942851]
[1744699723418,0.05260089,131.33,131.31,0.04942851]
[1744699723814,7.6163,131.32,131.31,0.04942851]
[1744699724009,7.43649555,131.33,131.27,35.2388]
[1744699724218,7.43649555,131.33,131.27,27.62]
[1744699724413,7.6172,131.31,131.28,7.6186]
[1744699724715,0.05260089,131.33,131.27,27.62]
[1744699724913,7.38389466,131.33,131.27,27.62]
[1744699725114,7.66556798,131.31,131.29,0.0496382]
[1744699726915,0.04836798,131.31,131.29,0.0496382]
[1744699727618,0.04836798,131.31,131.3,7.6175]
[1744699730326,0.04836798,131.31,131.29,7.6675382]
[1744699739227,0.04836798,131.31,131.3,7.6175]
[1744699741736,2.1314,131.38,131.3,35.00389466]
[1744699741936,2.1314,131.38,131.31,4.2225]
[1744699742240,7.6145,131.36,131.32,7.6159]
[1744699742538,2.1314,131.38,131.31,4.2225]
[1744699742836,0.05156289,131.36,131.33,7.66520466]
[1744699743342,7.66556289,131.36,131.34,7.615]
[1744699743637,0.05156289,131.36,131.34,7.615]
[1744699744340,0.05156289,131.36,131.35,7.6146]
[1744699744838,0.05156289,131.36,131.33,0.04970466]
[1744699745138,0.05156289,131.36,131.34,7.6149]
[1744699748041,0.05156289,131.36,131.33,0.04970466]
[1744699748538,7.38389466,131.35,131.27,31.8065]
[1744699748738,7.38389466,131.32,131.27,27.62]
[1744699749538,37.07069466,131.34,131.27,27.62]
[1744699749739,0.04798744,131.31,131.28,0.05025871]
[1744699750144,0.04798744,131.31,131.29,7.618]
[1744699752346,7.66488744,131.31,131.28,7.66855871]
[1744699754146,0.04798744,131.31,131.29,7.618]
[1744699754645,0.04798744,131.31,131.3,7.6175]
[1744699758644,0.04798744,131.31,131.29,7.6178]